bitfinex/quotes_SOLUSD_20251013
["timestamp","ask_amount","ask_price","bid_price","bid_amount"]
[1760335666578,20.8,194.74,194.7,9.7966194]
[1760335666891,10.4666194,194.77,194.7,9.7966194]
[1760335667099,31.2666194,194.77,194.71,5.13584304]
[1760335667274,10.4666194,194.77,194.71,5.13584304]
[1760335667469,20.8,194.75,194.71,5.13584304]
[1760335667673,21.47,194.75,194.71,5.13584304]
[1760335668177,0.67,194.79,194.72,10.4766194]
[1760335668391,0.67,194.79,194.73,9.7966194]
[1760335668606,10.4666194,194.81,194.74,9.7966194]
[1760335668898,0.67,194.81,194.75,9.7966194]
[1760335669080,0.67,194.81,194.76,5.13452454]
[1760335669264,20.8,194.79,194.76,5.13452454]
[1760335669881,20.8,194.79,194.74,9.7966194]
[1760335670091,21.47,194.79,194.74,9.7966194]
[1760335670385,0.10067579,194.77,194.74,27.76927482]
[1760335670591,0.10067579,194.77,194.75,10.4766194]
[1760335670893,0.10067579,194.77,194.76,9.7966194]
[1760335671064,0.10067579,194.77,194.75,0.68]
[1760335671392,0.10067579,194.77,194.76,5.81452454]
[1760335671594,0.10067579,194.77,194.76,15.61114394]
[1760335672182,0.10067579,194.77,194.76,26.48761915]
[1760335673293,0.10067579,194.77,194.76,16.69099975]
[1760335673476,0.10067579,194.77,194.76,26.48761915]
[1760335674390,0.10067579,194.77,194.76,16.69099975]
[1760335674575,0.10067579,194.77,194.76,26.48761915]
[1760335675288,0.10067579,194.77,194.76,5.13452454]
[1760335675481,0.10067579,194.77,194.76,26.48761915]
[1760335676293,0.09465347,194.78,194.76,26.48761915]
[1760335676476,0.09465347,194.78,194.77,15.61088032]
[1760335677593,0.09465347,194.78,194.77,12.39713087]
[1760335678298,0.10600718,194.8,194.78,10.87647521]
[1760335678496,0.10600718,194.8,194.79,11.71660371]
[1760335678684,0.10600718,194.8,194.79,12.39660371]
[1760335680099,0.10600718,194.8,194.79,5.81373376]
[1760335680278,0.10600718,194.8,194.79,11.71660371]
[1760335680590,0.10600718,194.8,194.79,12.39660371]
[1760335681898,0.11034887,194.81,194.79,5.13373376]
[1760335682686,0.11034887,194.81,194.79,11.71660371]
[1760335683678,0.11034887,194.81,194.79,5.13373376]
[1760335683890,0.11034887,194.81,194.8,6.58286995]
[1760335684404,0.11034887,194.81,194.8,7.26286995]
[1760335684787,1e-08,194.81,194.8,23.27281538]
[1760335685302,1e-08,194.82,194.81,6.58286995]
[1760335685503,1e-08,194.83,194.82,10.87647521]
[1760335685797,1e-08,194.83,194.82,18.13934516]
[1760335686003,1e-08,194.84,194.83,17.45934516]
[1760335686203,6.58286995,194.96,194.83,17.45934516]
[1760335686204,6.58286995,194.97,194.84,10.87647521]
[1760335686502,0.67,194.91,194.85,17.45934516]
[1760335686807,2.6809925,194.93,194.85,23.27149809]
[1760335686987,0.67,194.92,194.85,23.27149809]
[1760335687392,0.67,194.92,194.85,22.59149809]
[1760335688004,1e-08,194.86,194.85,23.27149809]
[1760335688503,2.6809925,194.93,194.86,10.87647521]
[1760335688711,2.6809925,194.93,194.92,6.58286995]
[1760335689201,0.67,194.96,194.93,10.87647521]
[1760335689386,2.68040132,194.97,194.94,6.58286995]
[1760335689585,0.67,194.96,194.94,86.98286995]
[1760335689794,0.67,194.95,194.94,80.4]
[1760335690295,0.76830132,194.95,194.94,80.4]
[1760335690500,7.35117127,194.95,194.94,80.4]
[1760335690695,7.35117127,194.95,194.89,80.4]
[1760335690896,6.58286995,194.9,194.89,79.68]
[1760335691103,7.25286995,194.9,194.81,6.58286995]
[1760335691409,6.58286995,194.87,194.8,24.55001573]
[1760335691706,21.47,194.89,194.84,6.58286995]
[1760335691707,20.8,194.88,194.84,6.58286995]
[1760335692001,21.47,194.88,194.85,6.58286995]
[1760335692183,20.8,194.91,194.87,6.58286995]
[1760335692491,0.67,194.9,194.87,6.58286995]
[1760335692689,0.67,194.92,194.89,5.13109959]
[1760335692999,0.67,194.92,194.89,11.71396954]
[1760335693806,6.58286995,194.94,194.89,5.13109959]
[1760335694015,0.66,194.91,194.89,5.13109959]
[1760335694416,0.66,194.93,194.89,5.13109959]
[1760335694617,0.66,194.92,194.89,5.13109959]
[1760335694916,0.66,194.92,194.89,11.71396954]
[1760335695225,0.66,194.91,194.87,5.13137268]
[1760335695592,0.66,194.9,194.87,5.13137268]
[1760335696115,0.66,194.9,194.87,11.71424263]
[1760335696301,0.66,194.89,194.87,5.13137268]
[1760335696487,0.66,194.88,194.83,11.71554972]
[1760335696791,0.66,194.87,194.83,11.71554972]
[1760335696992,0.66,194.86,194.83,5.13267977]
[1760335697990,6.58286995,194.88,194.83,5.13267977]
[1760335698203,0.66,194.87,194.83,5.13267977]
[1760335698514,21.46,194.93,194.86,6.58286995]
[1760335698813,0.66,194.93,194.89,6.58286995]
[1760335699201,21.46,194.93,194.89,6.58286995]
[1760335699401,0.66,194.92,194.87,6.58286995]
[1760335699904,0.66,194.91,194.87,6.58286995]
[1760335700103,0.66,194.91,194.88,6.58286995]
[1760335700289,5.22786595,194.95,194.86,17.96161346]
[1760335700290,0.09830132,194.95,194.9,6.58286995]
[1760335700493,0.09830132,194.95,194.92,6.58286995]
[1760335700710,0.09830132,194.95,194.94,6.58286995]
[1760335700913,0.09830132,194.95,194.94,7.28286995]
[1760335701216,0.09830132,194.95,194.94,18.15934516]
[1760335702205,0.09830132,194.95,194.94,23.28912868]
[1760335702616,0.09830132,194.95,194.94,22.58912868]
[1760335702918,0.09830132,194.95,194.92,5.13007488]
[1760335703116,0.66,194.94,194.92,5.13007488]
[1760335703493,0.66,194.94,194.9,6.58286995]
[1760335703811,7.24286995,194.93,194.86,12.82916931]
[1760335704107,0.66,194.93,194.88,6.58286995]
[1760335704318,6.58286995,194.94,194.87,17.96069174]
[1760335704319,20.89830132,194.95,194.91,6.58286995]
[1760335704620,0.09830132,194.95,194.94,10.87647521]
[1760335704824,0.09830132,194.95,194.94,18.15934516]
[1760335706690,0.09830132,194.95,194.94,23.28912868]
[1760335706893,0.09830132,194.95,194.94,16.00625873]
[1760335707117,0.09830132,194.95,194.94,23.28912868]
[1760335707814,0.09830132,194.95,194.94,16.00625873]
[1760335708113,0.09830132,194.95,194.94,23.28912868]
[1760335708689,0.09830132,194.95,194.94,16.70625873]
[1760335708889,0.09830132,194.95,194.94,11.71265347]
[1760335709091,0.09830132,194.95,194.94,5.12978352]
[1760335709391,0.66,194.95,194.93,5.13003485]
[1760335709593,0.76,194.98,194.93,5.13003485]
[1760335709793,6.58286995,194.96,194.91,5.13036746]
[1760335710007,6.58286995,194.93,194.84,0.7]
[1760335710204,0.66,194.92,194.85,17.45934516]
[1760335710406,0.66,194.92,194.87,6.58286995]
[1760335710600,0.66,194.92,194.88,5.13136288]
[1760335711996,0.77116173,194.94,194.88,24.54264005]
[1760335713817,0.66,194.93,194.76,19.99999999]
[1760335714014,6.58286995,194.9,194.83,6.58286995]
[1760335714327,20.91116173,194.94,194.86,6.58286995]
[1760335714501,0.66,194.93,194.88,6.58286995]
[1760335714821,0.11116173,194.94,194.88,7.28286995]
[1760335715013,0.11116173,194.94,194.89,5.13109959]
[1760335715400,0.77116173,194.94,194.89,5.13109959]
[1760335715608,0.66,194.93,194.89,5.13109959]
[1760335716018,0.11116173,194.94,194.89,24.54171852]
[1760335716204,0.11116173,194.94,194.9,0.7]
[1760335716398,0.11116173,194.94,194.91,7.28286995]
[1760335716598,0.11116173,194.94,194.93,6.58286995]
[1760335716999,0.11116173,194.94,194.93,12.41291663]
[1760335718621,0.11116173,194.94,194.93,5.83004668]
[1760335718928,0.11116173,194.94,194.93,12.41291663]
[1760335719410,0.11116173,194.94,194.93,11.71291663]
[1760335719614,0.11116173,194.94,194.93,12.41291663]
[1760335719819,0.11116173,194.94,194.93,23.28939184]
[1760335720908,0.11116173,194.94,194.93,12.41291663]
[1760335721536,0.11116173,194.94,194.82,19.99999999]
[1760335721695,0.66,194.93,194.85,10.87647521]
[1760335721899,7.24286995,194.93,194.86,6.58286995]
[1760335722098,0.66,194.93,194.86,7.28286995]
[1760335722317,7.24286995,194.93,194.86,7.28286995]
[1760335722511,0.66,194.93,194.87,6.58286995]
[1760335722923,0.66,194.93,194.83,28.84085441]
[1760335722924,6.58286995,194.93,194.83,28.84085441]
[1760335723109,6.58286995,194.91,194.83,25.24724915]
[1760335723411,0.66,194.92,194.85,6.58286995]
[1760335723609,0.66,194.92,194.86,5.13188956]
[1760335723905,7.24286995,194.91,194.86,5.13188956]
[1760335724228,0.66,194.9,194.86,5.13188956]
[1760335724405,0.66,194.89,194.84,5.1321591]
[1760335724600,0.67,194.89,194.84,5.1321591]
[1760335725427,0.78116173,194.94,194.86,6.58286995]
[1760335725629,0.67,194.93,194.86,5.13188956]
[1760335725822,6.58286995,194.92,194.86,17.96161346]
[1760335726128,6.58286995,194.92,194.86,18.64161346]
[1760335726625,7.25286995,194.93,194.86,25.22448341]
[1760335726802,7.25286995,194.93,194.86,18.64161346]
[1760335727003,7.25286995,194.93,194.86,25.22448341]
[1760335727204,0.11116173,194.94,194.87,0.68]
[1760335727411,0.11116173,194.94,194.92,6.58286995]
[1760335727628,0.11116173,194.94,194.93,5.81004668]
[1760335727831,0.11116173,194.94,194.93,12.39291663]
[1760335728528,0.11116173,194.94,194.93,5.13004668]
[1760335729116,0.11116173,194.94,194.93,12.39291663]
[1760335729314,0.1,194.98,194.93,25.21803333]
[1760335729628,0.1,194.98,194.96,5.12925728]
[1760335729812,0.1,194.98,194.97,6.58286995]
[1760335730240,0.1,194.98,194.97,7.26286995]
[1760335730433,0.20650328,194.98,194.97,7.26286995]
[1760335731627,0.20650328,194.98,194.97,6.58286995]
[1760335731825,0.20650328,194.98,194.97,12.39186415]
[1760335733617,0.20650328,194.98,194.97,5.1289942]
[1760335733840,0.20650328,194.98,194.96,11.71212723]
[1760335734028,0.20650328,194.98,194.97,7.26286995]
[1760335734233,0.20650328,194.98,194.97,6.58286995]
[1760335734441,0.20650328,194.98,194.97,7.26286995]
[1760335735044,0.20650328,194.98,194.96,5.12925728]
[1760335735227,0.20650328,194.98,194.94,5.12978352]
[1760335735421,0.20650328,194.98,194.97,27.38286995]
[1760335735741,0.20650328,194.98,194.97,20.8]
[1760335736126,0.87650328,194.98,194.96,20.8]
[1760335736321,0.20650328,194.98,194.93,6.58286995]
[1760335736524,0.20650328,194.98,194.93,7.26286995]
[1760335736739,0.20650328,194.98,194.93,6.58286995]
[1760335736948,7.25286995,194.97,194.92,20.8]
[1760335737245,0.67,194.96,194.91,5.13054054]
[1760335737432,0.67,194.95,194.91,5.13054054]
[1760335737631,10.67116061,194.98,194.91,28.43163058]
[1760335737818,0.87650328,194.98,194.91,28.43163058]
[1760335738018,0.87650328,194.98,194.92,9.79465733]
[1760335738215,9.79465733,194.97,194.91,5.13054054]
[1760335738440,10.46465733,194.96,194.91,5.13054054]
[1760335738629,0.20650328,194.98,194.91,5.13054054]
[1760335738816,0.67,194.96,194.91,5.13054054]
[1760335739018,9.79465733,194.97,194.91,5.13054054]
[1760335739219,0.67,194.96,194.91,5.13054054]
[1760335739420,10.67116061,194.98,194.91,15.60519787]
[1760335739641,0.20650328,194.98,194.92,9.79465733]
[1760335739932,0.20650328,194.98,194.93,14.92470401]
[1760335740136,0.20650328,194.98,194.93,17.95516338]
[1760335740442,10.46465733,194.97,194.91,5.13034821]
[1760335740634,9.79465733,194.96,194.91,5.13034821]
[1760335740845,0.67,194.95,194.91,5.13034821]
[1760335741335,0.20650328,194.98,194.92,0.68]
[1760335741823,0.20650328,194.98,194.93,5.13004668]
[1760335742026,9.79465733,194.95,194.93,80.4]
[1760335742229,0.67,194.94,194.93,80.4]
[1760335743224,10.46465733,194.94,194.93,80.4]
[1760335743545,0.67,194.94,194.88,95.32590711]
[1760335743931,0.67,194.94,194.88,85.53124978]
[1760335744143,10.46465733,194.94,194.88,85.53124978]
[1760335744542,0.67,194.94,194.88,95.32590711]
[1760335744739,36.39374998,194.97,194.9,9.79465733]
[1760335744936,31.26465733,194.97,194.9,9.79465733]
[1760335745133,0.20650328,194.98,194.93,9.79465733]
[1760335745336,0.20650328,194.98,194.94,9.79465733]
[1760335745533,0.20650328,194.98,194.96,9.79465733]
[1760335745853,0.20650328,194.98,194.97,9.79465733]
[1760335746054,0.20650328,194.98,194.97,15.60365153]
[1760335748048,0.20650328,194.98,194.97,5.1289942]
[1760335748229,0.20650328,194.98,194.97,14.92365153]
[1760335748434,0.20650328,194.98,194.97,5.8089942]
[1760335748745,0.20650328,194.98,194.97,14.92365153]
[1760335748931,0.20650328,194.98,194.97,15.60365153]
[1760335749328,0.1,194.98,194.97,15.60365153]
[1760335749637,0.1,194.98,194.97,5.1289942]
[1760335750045,0.1,194.98,194.97,15.60365153]
[1760335750253,0.20558625,194.98,194.97,15.60365153]
[1760335750758,0.20558625,194.98,194.97,5.1289942]
[1760335750932,0.87558625,194.98,194.96,219.62917528]
[1760335751136,0.20558625,194.98,194.96,229.42383261]
[1760335751339,0.0948227,195.0,194.99,80.09310111]
[1760335751536,0.7648227,195.0,194.99,80.09310111]
[1760335751761,0.0948227,195.0,194.99,80.09310111]
[1760335753058,0.0948227,195.0,194.99,85.22156923]
[1760335753356,0.0948227,195.0,194.99,80.09310111]
[1760335753947,0.7948227,195.0,194.99,80.09310111]
[1760335754350,0.0948227,195.0,194.99,80.09310111]
[1760335755279,0.0948227,195.0,194.99,95.68622656]
[1760335755858,0.0948227,195.0,194.99,15.59312545]
[1760335757371,0.0948227,195.0,194.99,5.79846812]
[1760335757548,0.0948227,195.0,194.99,15.59312545]
[1760335758146,0.0948227,195.0,194.99,26.46960066]
[1760335759353,0.10499426,195.03,194.99,26.46960066]
[1760335759354,0.10499426,195.03,195.0,10.87647521]
[1760335759561,0.09293611,195.04,195.03,20.67113254]
[1760335759743,0.09293611,195.04,195.03,235.17113254]
[1760335759939,0.09293611,195.04,195.03,235.84113254]
[1760335760768,0.09293611,195.04,195.03,80.4]
[1760335760947,0.79293611,195.04,195.03,80.4]
[1760335761145,0.09293611,195.04,195.03,90.19465733]
[1760335761673,0.09293611,195.04,195.03,80.4]
[1760335761966,0.09293611,195.04,195.03,95.32207362]
[1760335762346,0.09293611,195.04,195.03,95.99207362]
[1760335762662,0.09293611,195.04,195.03,240.96854883]
[1760335767264,0.09293611,195.04,195.03,26.46854883]
[1760335768281,0.09293611,195.04,195.03,160.56854883]
[1760335768468,0.09293611,195.04,195.03,26.46854883]
[1760335768667,0.09293611,195.04,195.03,240.96854883]
[1760335768869,0.09293611,195.04,195.03,26.46854883]
[1760335769265,0.7,195.1,195.04,10.87647521]
[1760335769571,0.7,195.1,195.09,9.79465733]
[1760335770371,15.71741465,195.1,195.03,9.79465733]
[1760335770570,15.71741465,195.1,195.01,14.92258813]
[1760335770571,9.79465733,195.08,195.01,14.92258813]
[1760335771079,0.7,195.07,195.02,9.79465733]
[1760335771283,0.7,195.06,195.04,9.79465733]
[1760335771478,0.7,195.05,195.04,14.92171798]
[1760335771783,0.79710354,195.1,195.04,14.92171798]
[1760335771983,0.7,195.09,195.07,9.79465733]
[1760335772190,0.09710354,195.1,195.07,9.79465733]
[1760335772191,0.7,195.08,195.07,9.79465733]
[1760335772772,0.09710354,195.1,195.07,10.46465733]
[1760335773087,0.7,195.09,195.07,9.79465733]
[1760335773286,0.7,195.08,195.07,9.79465733]
[1760335773478,0.7,195.08,195.07,14.92102222]
[1760335773886,0.79710354,195.1,195.07,14.92102222]
[1760335774187,0.09710354,195.1,195.09,9.79465733]
[1760335774693,0.09710354,195.1,195.09,10.46465733]
[1760335775591,0.09710354,195.1,195.09,26.46697189]
[1760335776191,0.09710354,195.1,195.09,5.12583935]
[1760335776393,0.09710354,195.1,195.09,14.92049668]
[1760335777776,0.09710354,195.1,195.07,12.81591223]
[1760335777777,0.09710354,195.1,195.08,5.12608174]
[1760335777979,0.09710354,195.1,195.09,9.79465733]
[1760335778178,0.7,195.09,195.08,5.12608174]
[1760335778383,0.7,195.09,195.06,9.79465733]
[1760335778595,0.7,195.08,195.06,9.79465733]
[1760335778887,0.09710354,195.1,195.07,9.79465733]
[1760335779095,0.09710354,195.1,195.06,9.79465733]
[1760335779596,0.7,195.09,195.04,9.79465733]
[1760335779786,0.7,195.08,195.05,9.79465733]
[1760335780093,0.7,195.07,195.06,9.79465733]
[1760335780701,0.7,195.07,195.05,9.79465733]
[1760335781373,5.12595737,195.09,195.05,9.79465733]
[1760335781374,0.7,195.06,195.05,9.79465733]
[1760335782881,0.7,195.06,195.0,5.12820512]
[1760335783191,0.7,195.05,195.02,9.79465733]
[1760335783391,0.7,195.04,195.02,9.79465733]
[1760335785320,0.7,195.04,195.02,14.92229236]
[1760335785486,0.68,195.06,195.02,14.92229236]
[1760335785685,0.68,195.05,195.03,9.79465733]
[1760335786575,0.68,195.04,195.03,9.79465733]
[1760335786782,0.68,195.04,195.02,9.79465733]
[1760335787597,0.68,195.04,195.03,9.79465733]
[1760335788000,5.12647104,195.07,195.03,9.79465733]
[1760335788206,0.68,195.06,195.03,9.79465733]
[1760335788997,5.12647104,195.07,195.03,9.79465733]
[1760335789199,0.68,195.06,195.03,9.79465733]
[1760335789497,5.12647104,195.07,195.03,9.79465733]
[1760335789704,0.68,195.06,195.03,9.79465733]
[1760335790399,0.68,195.06,194.99,12.82117031]
[1760335790400,0.10294686,195.06,195.05,9.79465733]
[1760335792496,0.10294686,195.06,195.02,5.12767921]
[1760335792792,0.10294686,195.06,195.05,9.79465733]
[1760335793116,0.10294686,195.06,195.04,9.79465733]
[1760335793486,0.10294686,195.06,195.02,5.12767921]
[1760335793685,0.10294686,195.06,195.04,9.79465733]
[1760335793894,0.10294686,195.06,195.05,9.79465733]
[1760335794509,0.10294686,195.06,195.03,5.1272015]
[1760335794711,0.10294686,195.06,195.05,9.79465733]
[1760335795809,0.10294686,195.06,195.04,9.79465733]
[1760335797087,0.10294686,195.06,195.05,0.7]
[1760335797297,0.10294686,195.06,195.05,10.49465733]
[1760335798223,0.0998663,195.07,195.06,10.87647521]
[1760335798516,0.09389816,195.08,195.07,20.67113254]
[1760335798684,0.09389816,195.08,195.07,21.37113254]
[1760335799085,1e-08,195.08,195.07,21.37113254]
[1760335799306,1e-08,195.08,195.07,42.17113254]
[1760335799720,0.10358682,195.09,195.08,10.87647521]
[1760335799884,0.10358682,195.09,195.08,11.57647521]
[1760335800221,0.10358682,195.09,195.08,5.82610211]
[1760335800391,0.10358682,195.09,195.08,23.26321326]
[1760335801023,0.10895679,195.1,195.09,10.87647521]
[1760335801192,0.10895679,195.1,195.09,18.13711115]
[1760335802315,0.10895679,195.1,195.09,23.2629505]
[1760335802499,0.1,195.15,195.1,17.43711115]
[1760335802699,0.1,195.15,195.1,18.13711115]
[1760335803708,0.78,195.15,195.1,10.87647521]
[1760335803914,0.78,195.15,195.1,18.13711115]
[1760335804116,0.1,195.15,195.1,18.13711115]
[1760335804413,0.1,195.15,195.1,23.26268777]
[1760335804717,0.78,195.17,195.15,79.91154807]
[1760335804900,0.1,195.17,195.16,6.56063594]
[1760335805519,0.1,195.17,195.16,134.8]
[1760335805817,0.1,195.17,195.16,137.42233674]
[1760335806610,0.1,195.17,195.16,142.54633755]
[1760335807198,0.1,195.17,195.16,153.42281276]
[1760335807419,0.1,195.18,195.17,10.87647521]
[1760335807733,0.1,195.24,195.23,6.5544161]
[1760335807932,19.99999999,195.49,195.26,20.8]
[1760335808220,15.60715163,195.53,195.3,10.87647521]
[1760335808221,0.68,195.38,195.3,10.87647521]
[1760335808421,3.35505696,195.42,195.37,6.5544161]
[1760335808604,5.11535116,195.49,195.41,6.5544161]
[1760335809022,2.67454408,195.45,195.4,6.5544161]
[1760335809222,0.68,195.44,195.4,6.5544161]
[1760335809521,0.68,195.43,195.35,5.81901714]
[1760335809733,0.68,195.42,195.39,6.5544161]
[1760335810029,0.68,195.41,195.39,6.5544161]
[1760335810198,2.6745598,195.46,195.35,5.11901714]
[1760335810399,0.09411819,195.4,195.39,6.5544161]
[1760335811016,0.77411819,195.4,195.39,6.5544161]
[1760335811414,0.77411819,195.4,195.28,0.7]
[1760335811614,0.77411819,195.4,195.36,6.5544161]
[1760335811615,0.68,195.39,195.36,6.5544161]
[1760335811814,0.68,195.38,195.34,6.5544161]
[1760335812014,0.68,195.37,195.34,6.5544161]
[1760335812216,0.68,195.36,195.34,6.5544161]
[1760335812527,0.68,195.35,195.34,6.5544161]
[1760335813102,0.68,195.37,195.34,6.5544161]
[1760335813419,0.09411819,195.4,195.36,6.5544161]
[1760335813721,0.09411819,195.4,195.39,6.5544161]
[1760335813925,0.75411819,195.4,195.39,6.5544161]
[1760335814124,0.09411819,195.4,195.39,6.5544161]
[1760335814307,0.75411819,195.4,195.31,12.79978929]
[1760335814508,0.66,195.39,195.31,12.79978929]
[1760335814727,0.66,195.39,195.37,6.5544161]
[1760335814925,0.66,195.38,195.37,6.5544161]
[1760335815128,0.66,195.38,195.31,18.59985482]
[1760335815299,0.66,195.38,195.37,6.5544161]
[1760335815505,5.87185034,195.4,195.37,6.5544161]
[1760335815707,0.66,195.39,195.38,6.5544161]
[1760335816435,0.09411819,195.4,195.38,28.0344161]
[1760335816600,0.09411819,195.4,195.39,7.2344161]
[1760335818023,0.09411819,195.4,195.38,20.8]
[1760335818230,0.09411819,195.4,195.39,12.35238528]
[1760335818713,0.09411819,195.4,195.39,11.67238528]
[1760335819421,0.09411819,195.4,195.39,12.35238528]
[1760335819916,0.09411819,195.4,195.39,5.11796918]
[1760335820117,0.09411819,195.4,195.39,11.67238528]
[1760335820842,0.09411819,195.4,195.39,6.5544161]
[1760335820843,0.75411819,195.4,195.39,6.5544161]
[1760335821833,0.09411819,195.4,195.39,6.5544161]
[1760335822357,0.75411819,195.4,195.35,20.8]
[1760335822643,0.66,195.39,195.38,6.5544161]
[1760335823012,0.09411819,195.4,195.38,6.5544161]
[1760335823209,0.09411819,195.4,195.39,6.5544161]
[1760335823810,0.09411819,195.4,195.39,7.2344161]
[1760335824432,0.10763813,195.42,195.41,27.3544161]
[1760335824825,0.10763813,195.42,195.41,28.0344161]
[1760335825530,0.10763813,195.42,195.41,27.3544161]
[1760335826439,0.10763813,195.42,195.41,33.15186147]
[1760335826821,0.10763813,195.42,195.41,32.47186147]
[1760335828156,0.10763813,195.42,195.41,33.15186147]
[1760335828935,0.10763813,195.42,195.41,11.67186147]
[1760335829422,0.77114221,195.45,195.41,11.67186147]
[1760335829423,0.66,195.45,195.41,5.11744537]
[1760335829615,5.11562613,195.48,195.44,6.5544161]
[1760335829814,30.02820811,195.52,195.46,6.5544161]
[1760335830040,6.5544161,195.51,195.45,6.5544161]
[1760335830215,0.66,195.5,195.45,6.5544161]
[1760335830414,0.10510369,195.47,195.41,5.11744537]
[1760335830635,0.66,195.46,195.39,17.91289215]
[1760335830835,5.22098656,195.47,195.39,17.91289215]
[1760335831035,5.22098656,195.47,195.45,6.5544161]
[1760335831536,0.66,195.46,195.45,6.5544161]
[1760335833637,0.10510369,195.47,195.45,6.5544161]
[1760335833846,0.10510369,195.47,195.46,6.5544161]
[1760335834924,0.76510369,195.47,195.46,6.5544161]
[1760335835118,0.76510369,195.47,195.44,5.11658125]
[1760335835324,0.66,195.46,195.45,6.5544161]
[1760335835928,0.10510369,195.47,195.45,6.5544161]
[1760335836243,0.10510369,195.47,195.46,6.5544161]
[1760335836444,0.76510369,195.47,195.46,6.5544161]
[1760335836618,0.10510369,195.47,195.46,6.5544161]
[1760335836944,0.76510369,195.47,195.46,6.5544161]
[1760335837245,15.56418162,195.52,195.46,6.5544161]
[1760335837445,15.56418162,195.52,195.47,6.5544161]
[1760335837657,2.77747208,195.52,195.47,6.5544161]
[1760335838442,5.223625,195.51,195.47,6.5544161]
[1760335839369,0.66,195.5,195.47,6.5544161]
[1760335839655,6.5544161,195.48,195.39,5.79796918]
[1760335839834,6.5544161,195.45,195.4,6.5544161]
[1760335840034,0.66,195.44,195.4,6.5544161]
[1760335840334,0.66,195.44,195.41,6.5544161]
[1760335840855,0.66,195.43,195.33,5.11954128]
[1760335841056,0.66,195.43,195.38,6.5544161]
[1760335841355,6.5544161,195.41,195.34,6.5544161]
[1760335841654,0.66,195.41,195.36,6.5544161]
[1760335842057,0.66,195.4,195.33,0.68]
[1760335842239,6.5544161,195.37,195.31,7.2344161]
[1760335842442,20.8,195.39,195.29,5.12058989]
[1760335842443,6.5544161,195.35,195.29,6.5544161]
[1760335842640,0.66,195.34,195.26,7.2344161]
[1760335842957,0.66,195.34,195.25,10.04158915]
[1760335842958,6.5544161,195.32,195.25,6.5544161]
[1760335843136,11.67496458,195.3,195.24,6.5544161]
[1760335843334,6.5544161,195.32,195.25,6.5544161]
[1760335843534,7.2444161,195.33,195.27,6.5544161]
[1760335843868,7.2444161,195.32,195.24,0.68]
[1760335844166,7.2444161,195.32,195.25,6.5544161]
[1760335844750,0.69,195.32,195.26,6.5544161]
[1760335845466,5.81002925,195.32,195.26,6.5544161]
[1760335845867,5.81002925,195.32,195.26,11.67575645]
[1760335846037,0.69,195.37,195.3,6.5544161]
[1760335846236,7.2444161,195.37,195.3,6.5544161]
[1760335846742,7.2444161,195.37,195.28,0.68]
[1760335846743,7.2444161,195.36,195.29,6.5544161]
[1760335847067,6.5544161,195.33,195.27,6.5544161]
[1760335847242,6.5544161,195.34,195.27,6.5544161]
[1760335847554,5.11954128,195.33,195.27,6.5544161]
[1760335848273,6.5544161,195.31,195.25,6.5544161]
[1760335848441,7.2444161,195.31,195.25,6.5544161]
[1760335848836,6.5544161,195.3,195.24,6.5544161]
[1760335849153,7.2444161,195.31,195.24,6.5544161]
[1760335849465,25.1628106,195.33,195.26,6.5544161]
[1760335849766,6.5544161,195.32,195.25,0.71]
[1760335850058,7.2444161,195.32,195.25,7.2644161]
[1760335850563,0.10312946,195.26,195.25,7.2644161]
[1760335851683,0.10312946,195.26,195.25,12.38605502]
[1760335854357,0.10312946,195.26,195.22,6.5544161]
[1760335854558,0.10312946,195.26,195.23,6.5544161]
[1760335854961,0.10312946,195.26,195.23,7.2644161]
[1760335856566,0.10312946,195.26,195.23,12.38649268]
[1760335856864,0.10312946,195.26,195.24,6.5544161]
[1760335857159,0.10312946,195.26,195.23,5.83207658]
[1760335857370,0.10312946,195.26,195.25,6.5544161]
[1760335857579,0.10312946,195.26,195.2,0.71]
[1760335857896,0.10312946,195.26,195.22,6.5544161]
[1760335858061,0.10312946,195.26,195.22,7.2644161]
[1760335858541,0.10312946,195.26,195.14,20.8]
[1760335858542,5.91451344,195.26,195.2,7.2644161]
[1760335858745,5.91451344,195.26,195.13,38.43591451]
[1760335858746,25.2723711,195.26,195.17,0.71]
[1760335858961,7.2444161,195.25,195.18,6.5544161]
[1760335859574,5.12190124,195.24,195.18,9.76926714]
[1760335859957,5.12190124,195.24,195.19,9.76926714]
[1760335860262,5.12190124,195.24,195.19,10.47926714]
[1760335861248,0.69,195.24,195.19,10.47926714]
[1760335862053,0.69,195.24,195.19,0.71]
[1760335862279,14.89090606,195.25,195.19,0.71]